[Event "47th GRE-chT 2019"]
[Site "Patra"]
[Date "2019.07.04"]
[Round "4.9"]
[White "Vrailas, Marios"]
[Black "Abelakiotis, Stavros"]
[Result "0-1"]
[ECO "E32"]
[WhiteElo "1285"]
[BlackElo "1959"]
[Annotator "NA"]
[PlyCount "82"]
[EventDate "2019.07.02"]
[EventCountry "GRE"]
[SourceTitle "playchess.com"]
[Source "ChessBase"]
[SourceQuality "1"]
[TimeControl "5400+30"]

1. d4 {[%emt 0:00:00]} Nf6 {[%emt 0:00:14]} 2. c4 {[%emt 0:00:00]} e6 {[%emt 0:00:58]} 3. Nc3 {[%emt 0:00:18]} Bb4 {[%emt 0:01:12]} 4. Qc2 {[%emt 0:00:31]} O-O {[%emt 0:01:25]} 5. Nf3 {[%emt 0:00:57]} c5 {[%emt 0:02:41]} 6. e3 {[%emt 0:00:23]} cxd4 {[%emt 0:08:35]} 7. exd4 {[%emt 0:07:17]} d5 {[%emt 0:04:17]} 8. Be3 {[%emt 0:02:47]} b6 {[%emt 0:01:14]} 9. Bd3 {[%emt 0:03:07]} dxc4 {[%emt 0:02:44]} 10. Bxc4 {[%emt 0:00:10]} Bb7 {[%emt 0:00:18]} 11. Rd1 {[%emt 0:07:24]} Qc7 {[%emt 0:09:07]} 12. Bd3 {[%emt 0:01:54]} Nbd7 {[%emt 0:03:25]} 13. O-O {[%emt 0:02:59]} Rac8 {[%emt 0:04:30]} 14. Rc1 {[%emt 0:04:01]} Qb8 {[%emt 0:06:57]} 15. Qe2 {[%emt 0:04:40]} h6 {[%emt 0:09:41]} 16. Nb5 {[%emt 0:08:42]} Ng4 {[%emt 0:14:13]} 17. g3 {[%emt 0:05:21]} a6 {[%emt 0:04:30]} 18. a3 {[%emt 0:00:24]} Be7 {[%emt 0:05:23]} 19. Nc3 {[%emt 0:00:50]} Qa8 {[%emt 0:02:50]} 20. Nd2 {[%emt 0:01:06]} Ngf6 {[%emt 0:04:12]} 21. f4 {[%emt 0:04:24]} Rfe8 {[%emt 0:02:54]} 22. Nc4 {[%emt 0:01:26]} Ne4 {[%emt 0:02:27]} 23. Nxe4 {[%emt 0:07:15]} Bxe4 {[%emt 0:00:05]} 24. Ne5 {[%emt 0:00:34]} Bxd3 {[%emt 0:01:16]} 25. Qxd3 {[%emt 0:00:09]} Nf6 {[%emt 0:00:51]} 26. f5 {[%emt 0:01:57]} exf5 {[%emt 0:02:09]} 27. Qxf5 {[%emt 0:03:26]} Qb7 {[%emt 0:01:13]} 28. Qd3 {[%emt 0:06:49]} b5 {[%emt 0:01:57]} 29. Qb3 {[%emt 0:01:37]} Bd6 {[%emt 0:01:20]} 30. Bf4 {[%emt 0:05:55]} Bxe5 {[%emt 0:01:48]} 31. Bxe5 {[%emt 0:00:41]} Nd5 {[%emt 0:00:31]} 32. Qf3 {[%emt 0:02:18]} f6 {[%emt 0:00:29]} 33. Bf4 {[%emt 0:01:36]} Qd7 {[%emt 0:00:23]} 34. Rc5 {[%emt 0:01:09]} Rcd8 {[%emt 0:00:37]} 35. Rd1 {[%emt 0:01:21]} Qe6 {[%emt 0:00:27]} 36. Kf2 {[%emt 0:01:06]} Kh8 {[%emt 0:00:34]} 37. Bc1 {[%emt 0:02:50]} Qh3 {[%emt 0:00:30]} 38. Rxd5 {[%emt 0:01:56]} Qxh2+ {[%emt 0:00:12]} 39. Kf1 {[%emt 0:00:36]} Rxd5 {[%emt 0:00:14]} 40. Rd2 {[%emt 0:00:00]} Qh3+ {[%emt 0:00:00]} 41. Kg1 {[%emt 0:00:00]} Re1+ {[%emt 0:00:00]} 0-1

[Event "47th GRE-chT 2019"]
[Site "Patra"]
[Date "2019.07.04"]
[Round "4.10"]
[White "Dimanoudis, Petros"]
[Black "Papaoulakis, Isidoros"]
[Result "1/2-1/2"]
[ECO "B40"]
[WhiteElo "1456"]
[BlackElo "1393"]
[Annotator "NA"]
[PlyCount "146"]
[EventDate "2019.07.02"]
[EventCountry "GRE"]
[SourceTitle "playchess.com"]
[Source "ChessBase"]
[SourceQuality "1"]
[TimeControl "5400+30"]

1. e4 {[%emt 0:00:00]} c5 {[%emt 0:00:00]} 2. Nf3 {[%emt 0:00:00]} e6 {[%emt 0:00:00]} 3. d4 {[%emt 0:00:30]} cxd4 {[%emt 0:00:02]} 4. Nxd4 {[%emt 0:00:41]} Nf6 {[%emt 0:00:21]} 5. Nc3 {[%emt 0:00:49]} Bb4 {[%emt 0:00:20]} 6. e5 {[%emt 0:03:00]} Nd5 {[%emt 0:00:14]} 7. Bd2 {[%emt 0:03:00]} Nxc3 {[%emt 0:01:23]} 8. bxc3 {[%emt 0:00:30]} Be7 {[%emt 0:00:11]} 9. Qg4 {[%emt 0:03:00]} g6 {[%emt 0:00:42]} 10. Bh6 {[%emt 0:03:01]} Qc7 {[%emt 0:02:10]} 11. Qg3 {[%emt 0:03:00]} a6 {[%emt 0:02:42]} 12. Nb3 {[%emt 0:14:29]} Nc6 {[%emt 0:01:17]} 13. Nd2 {[%emt 0:07:00]} d5 {[%emt 0:04:26]} 14. Nf3 {[%emt 0:11:01]} Bd7 {[%emt 0:05:06]} 15. Rb1 {[%emt 0:08:30]} Bf8 {[%emt 0:02:03]} 16. Bxf8 {[%emt 0:04:10]} Kxf8 {[%emt 0:00:54]} 17. Qg5 {[%emt 0:03:20]} h6 {[%emt 0:02:40]} 18. Qf6 {[%emt 0:00:53]} Rh7 {[%emt 0:02:28]} 19. Bd3 {[%emt 0:02:37]} Rg7 {[%emt 0:03:02]} 20. h4 {[%emt 0:04:29]} h5 {[%emt 0:04:17]} 21. Rh3 {[%emt 0:07:31]} Ne7 {[%emt 0:03:46]} 22. Rb3 {[%emt 0:07:30]} b5 {[%emt 0:05:00]} 23. Ng5 {[%emt 0:01:59]} Nf5 {[%emt 0:04:44]} 24. Bxf5 {[%emt 0:01:03]} exf5 {[%emt 0:01:15]} 25. e6 {[%emt 0:01:57]} Re8 {[%emt 0:03:29]} 26. Re3 {[%emt 0:01:37]} Qc6 {[%emt 0:17:00]} 27. Nxf7 {[%emt 0:07:01]} Qxe6 {[%emt 0:02:11]} 28. Rxe6 {[%emt 0:00:43]} Rxe6+ {[%emt 0:00:05]} 29. Qxe6 {[%emt 0:00:25]} Bxe6 {[%emt 0:00:02]} 30. Ng5 {[%emt 0:00:10]} Re7 {[%emt 0:00:34]} 31. Kd2 {[%emt 0:00:29]} Ke8 {[%emt 0:01:03]} 32. Kd3 {[%emt 0:00:29]} Bc8 {[%emt 0:01:08]} 33. Nh3 {[%emt 0:00:37]} Kf7 {[%emt 0:02:51]} 34. Nf4 {[%emt 0:00:35]} Rd7 {[%emt 0:01:40]} 35. Kd4 {[%emt 0:00:31]} Bb7 {[%emt 0:01:12]} 36. Nd3 {[%emt 0:00:47]} Rd6 {[%emt 0:01:07]} 37. Ne5+ {[%emt 0:00:29]} Kg7 {[%emt 0:02:12]} 38. a4 {[%emt 0:00:25]} Rb6 {[%emt 0:07:22]} 39. Nd7 {[%emt 0:00:18]} Rd6 {[%emt 0:00:59]} 40. Ne5 {[%emt 0:00:00]} Rb6 {[%emt 0:00:00]} 41. Kc5 {[%emt 0:00:00]} Re6 {[%emt 0:00:00]} 42. f4 {[%emt 0:00:00]} Re7 {[%emt 0:00:00]} 43. Kd6 {[%emt 0:00:00]} Re8 {[%emt 0:00:00]} 44. axb5 {[%emt 0:00:00]} axb5 {[%emt 0:00:00]} 45. Rxb5 {[%emt 0:00:00]} Ba8 {[%emt 0:00:00]} 46. Kd7 {[%emt 0:00:00]} Rg8 {[%emt 0:00:00]} 47. g3 {[%emt 0:00:00]} Kh7 {[%emt 0:00:00]} 48. Kc7 {[%emt 0:00:00]} Rg7+ {[%emt 0:00:00]} 49. Kb8 {[%emt 0:00:00]} Rg8+ {[%emt 0:00:00]} 50. Ka7 {[%emt 0:00:00]} Rc8 {[%emt 0:00:00]} 51. Rb8 {[%emt 0:00:00]} Rxc3 {[%emt 0:00:00]} 52. Kxa8 {[%emt 0:00:00]} Rxg3 {[%emt 0:00:00]} 53. Rb3 {[%emt 0:00:00]} Rg2 {[%emt 0:00:00]} 54. Rc3 {[%emt 0:00:00]} Rh2 {[%emt 0:00:00]} 55. Nf3 {[%emt 0:00:00]} Rf2 {[%emt 0:00:00]} 56. Rc7+ {[%emt 0:01:52]} Kg8 {[%emt 0:00:00]} 57. Rc8+ {[%emt 0:01:04]} Kg7 {[%emt 0:00:00]} 58. Ng5 {[%emt 0:00:26]} Rh2 {[%emt 0:00:00]} 59. Rc5 {[%emt 0:01:06]} Rxh4 {[%emt 0:00:00]} 60. Rxd5 {[%emt 0:00:14]} Kf6 {[%emt 0:00:00]} 61. Rd4 {[%emt 0:00:24]} Rxf4 {[%emt 0:00:00]} 62. Rxf4 {[%emt 0:00:23]} Kxg5 {[%emt 0:00:00]} 63. Rf1 {[%emt 0:01:04]} Kf6 {[%emt 0:00:00]} 64. c4 {[%emt 0:00:24]} Ke5 {[%emt 0:00:00]} 65. c5 {[%emt 0:00:50]} Kd5 {[%emt 0:00:00]} 66. Rc1 {[%emt 0:00:34]} Kc6 {[%emt 0:00:00]} 67. Rc4 {[%emt 0:02:00]} g5 {[%emt 0:00:00]} 68. Rc1 {[%emt 0:03:33]} f4 {[%emt 0:00:00]} 69. Rh1 {[%emt 0:01:07]} Kxc5 {[%emt 0:00:00]} 70. Rxh5 {[%emt 0:00:04]} Kd4 {[%emt 0:00:00]} 71. Rxg5 {[%emt 0:00:08]} f3 {[%emt 0:00:00]} 72. Rf5 {[%emt 0:00:11]} Ke3 {[%emt 0:00:00]} 73. Rxf3+ {[%emt 0:00:14]} Kxf3 {[%emt 0:00:00]} 1/2-1/2

[Event "47th GRE-chT 2019"]
[Site "Patra"]
[Date "2019.07.04"]
[Round "4.10"]
[White "Dogias, Christos"]
[Black "Dristellas, Neoklis"]
[Result "1-0"]
[ECO "C54"]
[WhiteElo "1409"]
[BlackElo "1577"]
[Annotator "NA"]
[PlyCount "67"]
[EventDate "2019.07.02"]
[EventCountry "GRE"]
[SourceTitle "playchess.com"]
[Source "ChessBase"]
[SourceQuality "1"]
[TimeControl "5400+30"]

1. e4 {[%emt 0:00:00]} e5 {[%emt 0:00:00]} 2. Nf3 {[%emt 0:00:00]} Nc6 {[%emt 0:00:00]} 3. Bc4 {[%emt 0:00:14]} Bc5 {[%emt 0:00:14]} 4. c3 {[%emt 0:00:18]} Nf6 {[%emt 0:00:36]} 5. d3 {[%emt 0:00:18]} a6 {[%emt 0:01:04]} 6. Bb3 {[%emt 0:00:27]} Ba7 {[%emt 0:01:18]} 7. O-O {[%emt 0:00:27]} d6 {[%emt 0:01:11]} 8. Bc2 {[%emt 0:01:37]} h6 {[%emt 0:01:43]} 9. Nbd2 {[%emt 0:00:55]} O-O {[%emt 0:01:02]} 10. h3 {[%emt 0:03:49]} Be6 {[%emt 0:01:38]} 11. Re1 {[%emt 0:01:02]} Re8 {[%emt 0:01:27]} 12. Nf1 {[%emt 0:01:37]} d5 {[%emt 0:04:14]} 13. Qe2 {[%emt 0:22:09]} Qd7 {[%emt 0:04:23]} 14. Kh2 {[%emt 0:01:50]} Rad8 {[%emt 0:00:08]} 15. Ng3 {[%emt 0:06:27]} b5 {[%emt 0:01:09]} 16. Nh4 {[%emt 0:25:47]} Ne7 {[%emt 0:07:48]} 17. d4 {[%emt 0:03:36]} dxe4 {[%emt 0:00:37]} 18. dxe5 {[%emt 0:02:10]} Bc4 {[%emt 0:01:08]} 19. Qd1 {[%emt 0:04:10]} Bxf2 {[%emt 0:00:22]} 20. exf6 {[%emt 0:03:15]} Bxe1 {[%emt 0:00:05]} 21. Qxe1 {[%emt 0:00:30]} Nd5 {[%emt 0:00:29]} 22. fxg7 {[%emt 0:08:16]} Nf6 {[%emt 0:01:07]} 23. Qe3 {[%emt 0:01:06]} Re6 {[%emt 0:00:50]} 24. Nhf5 {[%emt 0:01:53]} Nd5 {[%emt 0:01:32]} 25. Nxh6+ {[%emt 0:00:45]} Kxg7 {[%emt 0:00:51]} 26. Nhf5+ {[%emt 0:00:35]} Kg8 {[%emt 0:02:01]} 27. Qf2 {[%emt 0:01:15]} Rf6 {[%emt 0:01:19]} 28. Bg5 {[%emt 0:01:41]} e3 {[%emt 0:00:29]} 29. Qe1 {[%emt 0:01:40]} e2 {[%emt 0:00:21]} 30. Bxf6 {[%emt 0:00:15]} Nxf6 {[%emt 0:00:52]} 31. Nxe2 {[%emt 0:01:31]} Bxe2 {[%emt 0:00:16]} 32. Qxe2 {[%emt 0:01:27]} c6 {[%emt 0:00:34]} 33. Qe3 {[%emt 0:01:05]} Qc7+ {[%emt 0:00:29]} 34. Kh1 {[%emt 0:01:16]} 1-0

[Event "47th GRE-chT 2019"]
[Site "Patra"]
[Date "2019.07.04"]
[Round "4.11"]
[White "Ivic, Velimir"]
[Black "Balogh, Csaba"]
[Result "0-1"]
[ECO "C65"]
[WhiteElo "2510"]
[BlackElo "2587"]
[Annotator "ChessBase"]
[PlyCount "62"]
[EventDate "2019.07.02"]
[EventCountry "GRE"]
[SourceTitle "playchess.com"]
[Source "ChessBase"]
[SourceQuality "1"]
[TimeControl "5400+30"]

1. e4 {[%emt 0:00:00]} e5 {[%emt 0:00:00]} 2. Nf3 {[%emt 0:00:00]} Nc6 {[%emt 0:00:00]} 3. Bb5 {[%emt 0:00:00]} Nf6 {[%emt 0:00:00]} 4. d3 {[%emt 0:00:03]} Bc5 {[%emt 0:00:56]} 5. Bxc6 {[%emt 0:00:23]} dxc6 {[%emt 0:00:04]} 6. Nbd2 {[%emt 0:00:08]} O-O {[%emt 0:05:14]} 7. Nc4 {[%emt 0:00:53]} Nd7 {[%emt 0:00:07]} 8. h4 {[%emt 0:00:12]} b5 {[%emt 0:06:53]} 9. Ne3 {[%emt 0:00:27]} Re8 {[%emt 0:04:39]} 10. h5 {[%emt 0:00:11]} Bf8 {[%emt 0:04:02]} 11. g4 {[%emt 0:02:17]} h6 {[%emt 0:11:20]} 12. Nf5 {[%emt 0:03:06]} Nf6 {[%emt 0:11:59]} 13. Rg1 {[%emt 0:07:55]} Nh7 {[%emt 0:02:54]} 14. Be3 {[%emt 0:04:42]} f6 {[%emt 0:00:17]} 15. N3h4 {[%emt 0:09:19]} Ng5 {[%emt 0:01:26]} 16. Kf1 {[%emt 0:06:10]} Be6 {[%emt 0:01:21]} 17. Kg2 {[%emt 0:01:49]} c5 {[%emt 0:01:18]} 18. a4 {[%emt 0:02:42]} a6 {[%emt 0:04:54]} 19. f3 {[%emt 0:03:44]} Qd7 {[%emt 0:00:50]} 20. Ng6 {[%emt 0:02:51]} Bd6 {[%emt 0:05:46]} 21. b3 {[%emt 0:09:55]} Bf7 {[%emt 0:00:42]} 22. Qd2 {[%emt 0:02:42]} Kh7 {[%emt 0:00:33]} 23. Ngh4 {[%emt 0:04:34]} Bf8 {[%emt 0:01:56]} 24. Qc3 {[%emt 0:03:07]} Ne6 {[%emt 0:03:42]} 25. axb5 {[%emt 0:01:37]} axb5 {[%emt 0:00:11]} 26. Rxa8 {[%emt 0:00:50]} Rxa8 {[%emt 0:00:05]} 27. Ra1 {[%emt 0:00:10]} Qd8 {[%emt 0:04:58]} 28. Ra5 {[%emt 0:07:29]} c6 {[%emt 0:00:28]} 29. Bd2 {[%emt 0:01:20]} b4 {[%emt 0:04:46]} 30. Rxa8 {[%emt 0:09:47]} bxc3 {[%emt 0:00:10]} 31. Rxd8 {[%emt 0:00:07]} cxd2 {[%emt 0:00:04]} 0-1

[Event "47th GRE-chT 2019"]
[Site "Patra"]
[Date "2019.07.04"]
[Round "4.12"]
[White "Shoker, Samy"]
[Black "Safarli, Eltaj"]
[Result "1/2-1/2"]
[ECO "D79"]
[WhiteElo "2496"]
[BlackElo "2608"]
[Annotator "ChessBase"]
[PlyCount "60"]
[EventDate "2019.07.02"]
[EventCountry "GRE"]
[SourceTitle "playchess.com"]
[Source "ChessBase"]
[SourceQuality "1"]
[TimeControl "5400+30"]

1. Nf3 {[%emt 0:04:44]} Nf6 {[%emt 0:00:00]} 2. g3 {[%emt 0:00:06]} g6 {[%emt 0:00:00]} 3. Bg2 {[%emt 0:00:03]} Bg7 {[%emt 0:00:00]} 4. O-O {[%emt 0:00:03]} O-O {[%emt 0:00:00]} 5. c4 {[%emt 0:02:23]} c6 {[%emt 0:00:00]} 6. Nc3 {[%emt 0:00:12]} d5 {[%emt 0:00:00]} 7. cxd5 {[%emt 0:00:04]} cxd5 {[%emt 0:00:00]} 8. d4 {[%emt 0:02:37]} Nc6 {[%emt 0:00:02]} 9. Ne5 {[%emt 0:00:19]} Bf5 {[%emt 0:00:35]} 10. Bg5 {[%emt 0:04:03]} Ne4 {[%emt 0:01:18]} 11. Nxc6 {[%emt 0:00:10]} bxc6 {[%emt 0:00:08]} 12. Nxe4 {[%emt 0:01:10]} dxe4 {[%emt 0:01:54]} 13. Rc1 {[%emt 0:08:10]} Qxd4 {[%emt 0:05:49]} 14. Bxe7 {[%emt 0:02:21]} Qxd1 {[%emt 0:00:00]} 15. Rfxd1 {[%emt 0:00:00]} Bxb2 {[%emt 0:10:44]} 16. Rxc6 {[%emt 0:05:19]} Rfc8 {[%emt 0:05:12]} 17. Rc5 {[%emt 0:05:29]} Rxc5 {[%emt 0:00:03]} 18. Bxc5 {[%emt 0:01:15]} a5 {[%emt 0:07:24]} 19. a4 {[%emt 0:09:20]} Bc3 {[%emt 0:06:30]} 20. Rc1 {[%emt 0:01:49]} Bd2 {[%emt 0:05:11]} 21. Rd1 {[%emt 0:08:20]} Bb4 {[%emt 0:04:50]} 22. Be3 {[%emt 0:01:17]} h5 {[%emt 0:06:38]} 23. h3 {[%emt 0:01:29]} Rc8 {[%emt 0:07:13]} 24. Rd5 {[%emt 0:05:48]} Be6 {[%emt 0:03:47]} 25. Re5 {[%emt 0:03:59]} Bd7 {[%emt 0:07:52]} 26. Bxe4 {[%emt 0:00:39]} Bxa4 {[%emt 0:11:40]} 27. Bd5 {[%emt 0:04:46]} Re8 {[%emt 0:02:42]} 28. Rg5 {[%emt 0:11:33]} Bc2 {[%emt 0:01:54]} 29. Ba2 {[%emt 0:09:24]} Bf5 {[%emt 0:00:10]} 30. g4 {[%emt 0:05:00]} hxg4 {[%emt 2:27:32]} 1/2-1/2

[Event "47th GRE-chT 2019"]
[Site "Patra"]
[Date "2019.07.04"]
[Round "4.12"]
[White "Trimitzios, Petros"]
[Black "Papadopoulos, Nikolaos"]
[Result "1/2-1/2"]
[ECO "A04"]
[WhiteElo "2285"]
[BlackElo "2272"]
[Annotator "NA"]
[PlyCount "150"]
[EventDate "2019.07.02"]
[EventCountry "GRE"]
[SourceTitle "playchess.com"]
[Source "ChessBase"]
[SourceQuality "1"]
[TimeControl "5400+30"]

1. Nf3 {[%emt 0:00:01]} g6 {[%emt 0:00:27]} 2. e4 {[%emt 0:01:38]} d6 {[%emt 0:05:29]} 3. d4 {[%emt 0:00:44]} Nf6 {[%emt 0:00:26]} 4. Bd3 {[%emt 0:01:01]} Bg7 {[%emt 0:00:46]} 5. h3 {[%emt 0:01:14]} O-O {[%emt 0:00:31]} 6. O-O {[%emt 0:00:06]} c5 {[%emt 0:02:22]} 7. c3 {[%emt 0:00:07]} Nc6 {[%emt 0:03:30]} 8. dxc5 {[%emt 0:05:10]} dxc5 {[%emt 0:00:22]} 9. Qe2 {[%emt 0:00:09]} Qc7 {[%emt 0:05:24]} 10. Re1 {[%emt 0:12:02]} e5 {[%emt 0:08:04]} 11. Be3 {[%emt 0:12:34]} b6 {[%emt 0:04:42]} 12. Nbd2 {[%emt 0:02:48]} Nh5 {[%emt 0:23:45]} 13. Bc4 {[%emt 0:06:49]} Re8 {[%emt 0:00:32]} 14. Rad1 {[%emt 0:04:32]} Nf4 {[%emt 0:03:19]} 15. Qf1 {[%emt 0:01:39]} Re7 {[%emt 0:03:31]} 16. Nb3 {[%emt 0:12:36]} Bd7 {[%emt 0:09:39]} 17. Rd2 {[%emt 0:02:13]} Rb8 {[%emt 0:10:29]} 18. Red1 {[%emt 0:02:48]} h6 {[%emt 0:06:55]} 19. Nxc5 {[%emt 0:13:42]} bxc5 {[%emt 0:00:20]} 20. Bxc5 {[%emt 0:00:04]} Be6 {[%emt 0:07:35]} 21. Bd6 {[%emt 0:00:47]} Qb6 {[%emt 0:01:08]} 22. Bxe6 {[%emt 0:01:11]} Rxe6 {[%emt 0:00:11]} 23. Bxb8 {[%emt 0:00:06]} Nxb8 {[%emt 0:00:27]} 24. Qc4 {[%emt 0:00:58]} Bf6 {[%emt 0:01:13]} 25. Kh2 {[%emt 0:05:14]} Rc6 {[%emt 0:00:24]} 26. Qb3 {[%emt 0:00:33]} Qc7 {[%emt 0:00:25]} 27. Ne1 {[%emt 0:00:49]} Kg7 {[%emt 0:00:56]} 28. Nd3 {[%emt 0:01:52]} Rb6 {[%emt 0:00:26]} 29. Qc2 {[%emt 0:00:38]} Bg5 {[%emt 0:00:01]} 30. Nb4 {[%emt 0:01:15]} a5 {[%emt 0:01:00]} 31. Nd5 {[%emt 0:00:44]} Nxd5 {[%emt 0:00:01]} 32. Rxd5 {[%emt 0:00:02]} h5 {[%emt 0:00:59]} 33. Rxa5 {[%emt 0:00:49]} h4 {[%emt 0:00:26]} 34. Rad5 {[%emt 0:03:05]} Rf6 {[%emt 0:00:01]} 35. a4 {[%emt 0:05:36]} Qa7 {[%emt 0:00:18]} 36. f3 {[%emt 0:00:36]} Bf4+ {[%emt 0:00:30]} 37. Kh1 Nc6 {[%emt 0:01:21]} 38. b4 {[%emt 0:00:33]} Qe3 {[%emt 0:00:19]} 39. R5d3 {[%emt 0:00:35]} Qb6 {[%emt 0:00:44]} 40. a5 {[%emt 0:00:00]} Qb5 {[%emt 0:00:00]} 41. Qa2 {[%emt 0:00:00]} Bg3 {[%emt 0:00:00]} 42. Rd5 {[%emt 0:00:00]} Qa6 {[%emt 0:00:00]} 43. Ra1 {[%emt 0:00:00]} Ne7 {[%emt 0:00:00]} 44. b5 {[%emt 0:00:00]} Qa7 {[%emt 0:00:00]} 45. b6 {[%emt 0:00:00]} Qa6 {[%emt 0:00:00]} 46. Rc5 {[%emt 0:00:00]} Rd6 {[%emt 0:00:00]} 47. Qb1 {[%emt 0:00:00]} Qe2 {[%emt 0:00:00]} 48. b7 {[%emt 0:00:00]} Rd2 {[%emt 0:00:00]} 49. Qf1 {[%emt 0:00:00]} Qe3 {[%emt 0:00:00]} 50. b8=Q {[%emt 0:00:00]} Qxc5 {[%emt 0:00:11]} 51. Qb6 {[%emt 0:00:00]} Qxc3 {[%emt 0:00:17]} 52. Rc1 {[%emt 0:00:00]} Qa3 {[%emt 0:00:47]} 53. Qc5 {[%emt 0:00:00]} Qb2 {[%emt 0:00:24]} 54. Qc3 {[%emt 0:00:00]} Qa2 {[%emt 0:04:50]} 55. Qfc4 {[%emt 0:00:00]} Rxg2 {[%emt 0:01:18]} 56. Qxa2 {[%emt 0:00:00]} Rxa2 {[%emt 0:00:05]} 57. Rc2 {[%emt 0:00:00]} Ra4 {[%emt 0:00:20]} 58. Qc5 {[%emt 0:02:17]} Ng8 {[%emt 0:00:15]} 59. Qc3 {[%emt 0:05:08]} Nf6 {[%emt 0:00:27]} 60. Qd2 {[%emt 0:02:09]} Bf4 {[%emt 0:00:24]} 61. Qd8 {[%emt 0:02:19]} Nh5 {[%emt 0:00:46]} 62. Kg2 {[%emt 0:01:12]} Be3 {[%emt 0:00:40]} 63. Qxh4 {[%emt 0:00:32]} Nf4+ {[%emt 0:00:19]} 64. Kg3 {[%emt 0:00:29]} Rxa5 {[%emt 0:00:43]} 65. Rc8 {[%emt 0:00:32]} Nh5+ {[%emt 0:01:12]} 66. Kh2 {[%emt 0:00:16]} Ra2+ {[%emt 0:00:17]} 67. Kh1 {[%emt 0:00:06]} Ra1+ {[%emt 0:00:44]} 68. Kh2 {[%emt 0:00:30]} Ra2+ {[%emt 0:00:30]} 69. Kh1 {[%emt 0:00:07]} Ra1+ {[%emt 0:00:27]} 70. Kg2 {[%emt 0:00:58]} Nf4+ {[%emt 0:00:13]} 71. Kh2 {[%emt 0:00:21]} Ra2+ {[%emt 0:00:14]} 72. Kh1 {[%emt 0:00:07]} Ra1+ {[%emt 0:00:34]} 73. Kh2 {[%emt 0:00:05]} Ra2+ {[%emt 0:00:49]} 74. Kh1 {[%emt 0:00:05]} Ra1+ {[%emt 0:00:37]} 75. Kh2 {[%emt 0:00:04]} Ra2+ {[%emt 0:00:34]} 1/2-1/2

[Event "47th GRE-chT 2019"]
[Site "Patra"]
[Date "2019.07.04"]
[Round "4.13"]
[White "Halkias, Stelios"]
[Black "Georgiev, Krum"]
[Result "1/2-1/2"]
[ECO "E92"]
[WhiteElo "2553"]
[BlackElo "2323"]
[Annotator "ChessBase"]
[PlyCount "59"]
[EventDate "2019.07.02"]
[EventCountry "GRE"]
[SourceTitle "playchess.com"]
[Source "ChessBase"]
[SourceQuality "1"]
[TimeControl "5400+30"]

1. Nf3 {[%emt 0:00:19]} g6 {[%emt 0:00:31]} 2. c4 {[%emt 0:01:04]} Bg7 {[%emt 0:00:28]} 3. d4 {[%emt 0:00:32]} d6 {[%emt 0:01:48]} 4. Nc3 {[%emt 0:00:53]} Nf6 {[%emt 0:00:24]} 5. e4 {[%emt 0:00:20]} O-O {[%emt 0:00:12]} 6. Be2 {[%emt 0:00:14]} e5 {[%emt 0:00:12]} 7. Be3 {[%emt 0:00:40]} Ng4 {[%emt 0:16:26]} 8. Bg5 {[%emt 0:00:43]} f6 {[%emt 0:00:09]} 9. Bh4 {[%emt 0:00:12]} Qe8 {[%emt 0:05:27]} 10. c5 {[%emt 0:16:32]} dxc5 {[%emt 0:20:43]} 11. dxe5 {[%emt 0:19:56]} Nxe5 {[%emt 0:14:28]} 12. Nxe5 {[%emt 0:02:10]} fxe5 {[%emt 0:00:00]} 13. Qd5+ {[%emt 0:01:18]} Kh8 {[%emt 0:00:17]} 14. Qxc5 {[%emt 0:00:38]} c6 {[%emt 0:03:26]} 15. Rd1 {[%emt 0:06:31]} Be6 {[%emt 0:01:51]} 16. Qb4 {[%emt 0:12:40]} Qc8 {[%emt 0:01:16]} 17. O-O {[%emt 0:04:02]} Re8 {[%emt 0:04:06]} 18. Rd6 {[%emt 0:15:08]} Nd7 {[%emt 0:10:03]} 19. Rxe6 {[%emt 0:03:30]} Rxe6 {[%emt 0:00:05]} 20. Bg4 {[%emt 0:00:05]} a5 {[%emt 0:04:26]} 21. Qa3 {[%emt 0:02:29]} Qe8 {[%emt 0:01:47]} 22. Bxe6 {[%emt 0:07:38]} Qxe6 {[%emt 0:00:04]} 23. Rd1 {[%emt 0:00:11]} Bf8 {[%emt 0:04:42]} 24. Qa4 {[%emt 0:02:12]} Nc5 {[%emt 0:01:45]} 25. Qc2 {[%emt 0:00:07]} Be7 {[%emt 0:00:12]} 26. Bg3 {[%emt 0:01:21]} Rd8 {[%emt 0:00:56]} 27. h3 {[%emt 0:01:01]} Kg7 {[%emt 0:00:57]} 28. Rxd8 {[%emt 0:00:41]} Bxd8 {[%emt 0:00:04]} 29. Nd1 {[%emt 0:00:34]} Nd7 {[%emt 0:02:34]} 30. b3 {[%emt 0:00:45]} 1/2-1/2

[Event "47th GRE-chT 2019"]
[Site "Patra"]
[Date "2019.07.04"]
[Round "4.13"]
[White "Azis, Azizis Ektoras"]
[Black "Vragoteris, Antonios"]
[Result "0-1"]
[ECO "B37"]
[WhiteElo "2191"]
[BlackElo "2168"]
[Annotator "NA"]
[PlyCount "80"]
[EventDate "2019.07.02"]
[EventCountry "GRE"]
[SourceTitle "playchess.com"]
[Source "ChessBase"]
[SourceQuality "1"]
[TimeControl "5400+30"]

1. Nf3 {[%emt 0:00:00]} c5 {[%emt 0:05:26]} 2. c4 {[%emt 0:00:05]} Nc6 {[%emt 0:01:56]} 3. d4 {[%emt 0:00:20]} cxd4 {[%emt 0:00:38]} 4. Nxd4 {[%emt 0:00:11]} g6 {[%emt 0:00:53]} 5. e4 {[%emt 0:03:00]} Bg7 {[%emt 0:01:27]} 6. Nc2 {[%emt 0:01:16]} Nf6 {[%emt 0:01:36]} 7. Nc3 {[%emt 0:00:19]} O-O {[%emt 0:01:03]} 8. Be2 {[%emt 0:01:01]} d6 {[%emt 0:01:45]} 9. O-O {[%emt 0:00:32]} Bd7 {[%emt 0:01:18]} 10. Rb1 {[%emt 0:06:32]} Rc8 {[%emt 0:01:17]} 11. b3 {[%emt 0:08:30]} a6 {[%emt 0:01:25]} 12. h3 {[%emt 0:13:11]} b5 {[%emt 0:27:16]} 13. cxb5 {[%emt 0:02:06]} axb5 {[%emt 0:00:19]} 14. Bxb5 {[%emt 0:13:04]} Ne5 {[%emt 0:00:15]} 15. Bxd7 {[%emt 0:01:41]} Rxc3 {[%emt 0:00:28]} 16. Bb5 {[%emt 0:10:50]} Nxe4 {[%emt 0:00:35]} 17. Qe2 {[%emt 0:03:53]} Qa8 {[%emt 0:12:03]} 18. a4 {[%emt 0:12:22]} Rxh3 {[%emt 0:11:56]} 19. Bb2 {[%emt 0:09:39]} Rxb3 {[%emt 0:08:19]} 20. Nd4 {[%emt 0:04:39]} Rb4 {[%emt 0:05:54]} 21. Qe1 {[%emt 0:03:51]} Rxb2 {[%emt 0:10:54]} 22. Rxb2 {[%emt 0:00:08]} Nf3+ {[%emt 0:00:33]} 23. Nxf3 {[%emt 0:02:55]} Bxb2 {[%emt 0:00:09]} 24. Qe3 {[%emt 0:00:58]} Bf6 {[%emt 0:00:50]} 25. Nd4 {[%emt 0:00:37]} Rc8 {[%emt 0:01:36]} 26. Re1 {[%emt 0:00:35]} Nc5 {[%emt 0:01:01]} 27. Nb3 {[%emt 0:00:37]} Nxa4 {[%emt 0:00:37]} 28. Rc1 {[%emt 0:00:26]} Nc3 {[%emt 0:00:40]} 29. Bf1 {[%emt 0:00:38]} Qa3 {[%emt 0:00:56]} 30. Qb6 {[%emt 0:00:19]} Kg7 {[%emt 0:00:25]} 31. Re1 {[%emt 0:00:42]} Qa8 {[%emt 0:00:36]} 32. Nd2 {[%emt 0:00:23]} Qd5 {[%emt 0:00:39]} 33. Nf3 {[%emt 0:00:18]} g5 {[%emt 0:00:36]} 34. Nh2 {[%emt 0:00:35]} h5 {[%emt 0:00:33]} 35. Qa6 {[%emt 0:00:05]} Rc5 {[%emt 0:00:37]} 36. Qa7 {[%emt 0:00:26]} e6 {[%emt 0:00:23]} 37. g3 {[%emt 0:01:01]} Qd2 38. Nf3 {[%emt 0:00:20]} Qa2 {[%emt 0:01:28]} 39. Qd7 {[%emt 0:00:37]} g4 {[%emt 0:00:20]} 40. Nh2 {[%emt 0:00:00]} Bd4 {[%emt 0:00:00]} 0-1